fUST/lending_fUST_20240716
["ID","MTS","AMOUNT","RATE_DAILY","PERIOD"]
[332243549,1721067048335,-500.0,0.00022465,2]
[332243550,1721067048345,-6816.58,0.00022465,2]
[332243551,1721067048355,-500.0,0.00022465,2]
[332243552,1721067048365,-500.0,0.00022465,2]
[332243553,1721067048375,-500.0,0.00022465,2]
[332243554,1721067048384,-500.0,0.00022465,2]
[332243555,1721067048394,-500.0,0.00022465,2]
[332243556,1721067048403,-500.0,0.00022465,2]
[332243557,1721067048413,-6510.91,0.00022465,2]
[332243558,1721067048422,-949.85,0.00022465,2]
[332243559,1721067048432,-500.0,0.00022465,2]
[332243560,1721067048441,-500.0,0.00022465,4]
[332243561,1721067048450,-336.12749976,0.00022465,2]
[332243562,1721067048460,-597.33,0.00022465,2]
[332243563,1721067048469,-312.1,0.00022465,2]
[332243564,1721067048478,-500.0,0.00022465,2]
[332243565,1721067048487,-568.58,0.00022465,2]
[332243566,1721067048497,-500.0,0.00022465,2]
[332243567,1721067048506,-582.8149012,0.00022465,2]
[332243568,1721067048515,-500.0,0.00022465,2]
[332243569,1721067048524,-500.0,0.00022465,2]
[332243570,1721067048533,-509.0951134,0.00022465,2]
[332243571,1721067048543,-500.0,0.00022465,2]
[332243572,1721067048553,-500.0,0.00022465,2]
[332243573,1721067048562,-500.0,0.00022465,2]
[332243574,1721067048572,-150.112233,0.000226,5]
[332243575,1721067048582,-500.0,0.00022738,2]
[332243576,1721067048591,-500.0,0.00022739,2]
[332243577,1721067048601,-500.0,0.00022739,2]
[332243578,1721067048611,-500.0,0.00022739,2]
[332243579,1721067048622,-157.6979622,0.00022739,2]
[332243580,1721067048633,-500.0,0.00022739,2]
[332243581,1721067048642,-500.0,0.00022739,2]
[332243582,1721067048652,-597.20473165,0.00022739,2]
[332243583,1721067048662,-500.0,0.00022739,2]
[332243584,1721067048672,-157.85054141,0.00022739,2]
[332243585,1721067048684,-500.0,0.00022739,2]
[332243586,1721067048693,-500.0,0.00022739,2]
[332243587,1721067048702,-500.0,0.00022739,2]
[332243588,1721067048711,-500.0,0.00022739,2]
[332243589,1721067048721,-500.0,0.00022739,2]
[332243590,1721067048731,-807.42,0.00022739,2]
[332243591,1721067048740,-500.0,0.00022739,2]
[332243592,1721067048751,-607.61,0.00022739,2]
[332243593,1721067048760,-500.0,0.00022739,2]
[332243594,1721067048770,-500.0,0.00022739,2]
[332243595,1721067048781,-190.81406888,0.00022739,2]
[332243596,1721067048790,-500.0,0.00022739,2]
[332243597,1721067048800,-500.0,0.00022739,2]
[332243598,1721067048812,-641.0079705,0.00022739,2]
[332243599,1721067048821,-221.08492536,0.00022739,2]
[332243600,1721067048831,-500.0,0.00022739,2]
[332243601,1721067048840,-500.0,0.00022739,2]
[332243602,1721067048850,-549.95581509,0.00022739,2]
[332243603,1721067048863,-623.98,0.00022739,2]
[332243604,1721067048877,-500.0,0.00022739,2]
[332243605,1721067048892,-500.0,0.00022739,2]
[332243606,1721067048901,-500.0,0.00022739,2]
[332243607,1721067048913,-507.44700394,0.00022739,2]
[332243608,1721067048922,-500.0,0.00022739,2]
[332243609,1721067048933,-500.0,0.00022739,2]
[332243610,1721067048944,-687.61,0.00022739,2]
[332243611,1721067048955,-500.0,0.00022739,2]
[332243612,1721067048965,-500.0,0.00022739,2]
[332243613,1721067048976,-589.23,0.00022739,2]
[332243614,1721067048986,-500.0,0.00022739,2]
[332243615,1721067048996,-500.0,0.00022739,2]
[332243616,1721067049006,-500.0,0.00022739,2]
[332243617,1721067049015,-500.0,0.00022739,2]
[332243618,1721067049025,-500.0,0.00022739,2]
[332243619,1721067049035,-500.0,0.00022739,2]
[332243620,1721067049044,-500.0,0.00022739,2]
[332243621,1721067049054,-500.0,0.00022739,2]
[332243622,1721067049063,-500.0,0.00022739,2]
[332243623,1721067049073,-500.0,0.00022739,2]
[332243624,1721067049083,-500.0,0.00022739,2]
[332243625,1721067049116,-500.0,0.00022739,2]
[332243626,1721067049126,-982.7,0.00022739,2]
[332243627,1721067049136,-6816.58,0.00022739,2]
[332243628,1721067049145,-500.0,0.00022739,2]
[332243629,1721067049155,-500.0,0.00022739,2]
[332243630,1721067049164,-500.0,0.00022739,2]
[332243631,1721067049173,-424.63137672,0.00022739,2]
[332243632,1721067049182,-6510.91,0.00022739,2]
[332243633,1721067049192,-949.85,0.00022739,2]
[332243634,1721067049201,-500.0,0.00022739,4]
[332243635,1721067049210,-597.33,0.00022739,2]
[332243636,1721067049220,-500.0,0.00022739,2]
[332243637,1721067049229,-568.58,0.00022739,2]
[332243638,1721067049238,-557.80713184,0.00022739,2]
[332243639,1721067049247,-500.0,0.00022739,2]
[332243640,1721067049256,-500.0,0.00022739,2]
[332243641,1721067049265,-500.0,0.00022739,2]
[332243642,1721067049275,-500.0,0.00022739,2]
[332243643,1721067049285,-150.112233,0.000228,2]
[332243644,1721067049294,-150.112233,0.000228,5]
[332243645,1721067049303,-6912.73277105,0.00022859,2]
[332243646,1721067049314,-154.85288975,0.00022941,2]
[332243647,1721067049323,-283.73125597,0.00022941,2]
[332243648,1721067049334,-158.40244076,0.00022943,2]
[332243649,1721067049343,-166.666666,0.00022944,2]
[332243650,1721067049353,-4740.37631014,0.00022969,2]
[332243651,1721067049365,-1278.04794084,0.00023,2]
[332243652,1721067049375,-1000.0,0.00023,23]
[332243653,1721067049385,-500.0,0.00023012,2]
[332243654,1721067049394,-417.90469199,0.00023013,2]
[332243655,1721067049403,-500.0,0.00023013,2]
[332243656,1721067049412,-500.0,0.00023013,2]
[332243657,1721067049421,-500.0,0.00023013,2]
[332243658,1721067049431,-500.0,0.00023013,2]
[332243659,1721067049440,-500.0,0.00023013,2]
[332243660,1721067049449,-500.0,0.00023013,2]
[332243661,1721067049458,-552.98300427,0.00023013,2]
[332243662,1721067049467,-168.3972397,0.00023013,2]
[332243663,1721067049477,-500.0,0.00023013,2]
[332243664,1721067049487,-807.42,0.00023013,2]
[332243665,1721067049497,-500.0,0.00023013,2]
[332243666,1721067049506,-500.0,0.00023013,2]
[332243667,1721067049515,-385.28411996,0.00023013,2]
[332243668,1721067049524,-500.0,0.00023013,2]
[332243669,1721067049534,-623.98,0.00023013,2]
[332243670,1721067049544,-500.0,0.00023013,2]
[332243671,1721067049553,-602.96,0.00023013,2]
[332243672,1721067049563,-500.0,0.00023013,2]
[332243673,1721067049572,-500.0,0.00023013,2]
[332243674,1721067049582,-174.48505662,0.00023013,2]
[332243675,1721067049591,-687.61,0.00023013,2]
[332243676,1721067049602,-558.6835712,0.00023013,2]
[332243677,1721067049612,-500.0,0.00023013,2]
[332243678,1721067049621,-589.23,0.00023013,2]
[332243679,1721067049630,-500.0,0.00023013,2]
[332243680,1721067049639,-500.0,0.00023013,2]
[332243681,1721067049649,-500.0,0.00023013,2]
[332243682,1721067049658,-507.47410282,0.00023013,2]
[332243683,1721067049668,-500.0,0.00023013,2]
[332243684,1721067049678,-500.0,0.00023013,2]
[332243685,1721067049687,-613.97997161,0.00023013,2]
[332243686,1721067049698,-368.93,0.00023013,2]
[332243687,1721067049709,-500.0,0.00023013,2]
[332243688,1721067049719,-500.0,0.00023013,2]
[332243689,1721067049728,-500.0,0.00023013,2]
[332243690,1721067049739,-982.7,0.00023013,2]
[332243691,1721067049748,-6816.58,0.00023013,2]
[332243692,1721067049757,-500.0,0.00023013,2]
[332243693,1721067049769,-521.36227814,0.00023013,2]
[332243694,1721067049780,-6510.91,0.00023013,2]
[332243695,1721067049789,-949.85,0.00023013,2]
[332243696,1721067049798,-500.0,0.00023013,4]
[332243697,1721067049807,-597.33,0.00023013,2]
[332243698,1721067049817,-568.58,0.00023013,2]
[332243699,1721067049826,-500.0,0.00023013,2]
[332243700,1721067049835,-500.0,0.00023013,2]
[332243701,1721067049844,-500.0,0.00023013,2]
[332243702,1721067049854,-150.112233,0.000231,3]
[332243703,1721067049865,-4740.37631014,0.00023145,2]
[332243704,1721067049879,-150.112233,0.000232,5]
[332243705,1721067049891,-500.0,0.00023286,2]
[332243706,1721067049902,-500.0,0.00023287,2]
[332243707,1721067049914,-500.0,0.00023287,2]
[332243708,1721067049923,-500.0,0.00023287,2]
[332243709,1721067049932,-500.0,0.00023287,2]
[332243710,1721067049943,-500.0,0.00023287,2]
[332243711,1721067049953,-500.0,0.00023287,2]
[332243712,1721067049963,-441.68653583,0.00023287,2]
[332243713,1721067050119,-500.0,0.00021917,2]
[332243714,1721067050130,-500.0,0.00021917,2]
[332243715,1721067050140,-500.0,0.00021917,2]
[332243717,1721067050151,-500.0,0.00021917,2]
[332243718,1721067050161,-500.0,0.00021917,2]
[332243720,1721067050171,-58.31346417,0.00023287,2]
[332243721,1721067050181,-807.42,0.00023287,2]
[332243723,1721067050191,-500.0,0.00023287,2]
[332243724,1721067050200,-516.85594596,0.00023287,2]
[332243728,1721067050303,-1.81878348,0.00023287,2]
[332243930,1721067142152,340.92457016,0.00014999,2]
[332243931,1721067197858,591.61881409,0.00014999,2]
[332243932,1721067299235,314.26134443,0.00014999,2]
[332243933,1721067312556,263.62653457,0.00014999,2]
[332243934,1721067316022,158.40244076,0.00014999,2]
[332243935,1721067343573,271.28504204,0.00014999,2]
[332243936,1721067352277,156.30692249,0.00014999,2]
[332243937,1721067389723,4490.45309691,0.00014999,2]
[332243938,1721067420293,161.81150599,0.00014999,2]
[332243939,1721067423115,283.73125597,0.00014999,2]
[332243940,1721067423226,154.85288975,0.00014999,2]
[332243941,1721067448512,158.29829922,0.00014999,2]
[332243942,1721067551589,481.04710867,0.00014999,2]
[332243943,1721067654284,420.19811295,0.00014999,2]
[332243944,1721067729762,479.80999399,0.00014999,2]
[332243945,1721067740597,479.80999399,0.00014999,2]
[332243948,1721067967077,273.37336231,9.9e-05,2]
[332243949,1721067975625,273.37336231,9.9e-05,2]
[332243950,1721067983826,273.37336231,9.9e-05,2]
[332243952,1721067999137,273.37336231,9.9e-05,2]
[332243953,1721068007121,273.37336231,9.9e-05,2]
[332243954,1721068015270,273.37336231,9.9e-05,2]
[332243955,1721068023095,273.37336231,9.9e-05,2]
[332243956,1721068031732,273.37336231,9.9e-05,2]
[332243957,1721068092720,255.245644,0.00015692,2]
[332243998,1721068231819,-271.60692958,0.00016155,2]
[332244000,1721068231829,-300.0,0.00016254,2]
[332244002,1721068231838,-300.0,0.00016254,2]
[332244004,1721068231847,-11836.22983912,0.00016255,2]
[332244057,1721068240183,-1085.40230532,0.00016255,2]
[332244058,1721068240193,-14751.74934033,0.00016255,2]
[332244059,1721068240204,-21263.30307476,0.00016255,2]
[332244060,1721068240214,-1391.70114754,0.00016419,2]
[332244061,1721068240224,-244.65708507,0.00016519,2]
[332244062,1721068240234,-251.18647244,0.00016519,2]
[332244063,1721068240243,-221.67388413,0.00016519,2]
[332244064,1721068240254,-310.25278775,0.00016519,2]
[332244065,1721068240268,-24900.0,0.0001652,2]
[332244066,1721068240277,-3000.0,0.00017046,2]
[332244067,1721068240288,-354.02259843,0.00017487,2]
[332244068,1721068240300,-5296.98178745,0.00017588,2]
[332244069,1721068240310,-354.02259843,0.00017702,2]
[332244070,1721068240320,-420.0,0.00017879,2]
[332244071,1721068240331,-5296.98178745,0.00018004,2]
[332244072,1721068240341,-354.02259843,0.00018039,2]
[332244073,1721068240351,-354.02259843,0.00018082,2]
[332244074,1721068240363,-5296.98178745,0.00018241,2]
[332244075,1721068240373,-39378.8378949,0.00018418,2]
[332244076,1721068240383,-5296.98178745,0.00018521,2]
[332244077,1721068240392,-354.02259843,0.00018594,2]
[332244078,1721068240402,-5296.98178745,0.00018694,2]
[332244079,1721068240412,-354.02259843,0.00018806,2]
[332244080,1721068240424,-368.54157148,0.000189,2]
[332244081,1721068240433,-1391.70114749,0.00019059,2]
[332244082,1721068240443,-5296.98178745,0.00019065,2]
[332244083,1721068240452,-354.02259843,0.00019175,2]
[332244084,1721068240461,-163.429298,0.00019178,2]
[332244085,1721068240470,-354.02259843,0.00019239,2]
[332244086,1721068240479,-5296.98178745,0.00019335,2]
[332244087,1721068240489,-5296.98178745,0.00019463,2]
[332244088,1721068240499,-354.02259843,0.0001965,2]
[332244089,1721068240508,-587.0,0.00019667,2]
[332244090,1721068240517,-5530.18621684,0.00019694,2]
[332244091,1721068240527,-354.02259843,0.0001978,2]
[332244092,1721068240655,-5296.98178745,0.00019828,2]
[332244093,1721068240665,-39378.8378949,0.0001999,2]
[332244094,1721068240676,-20733.74042996,0.0002,2]
[332244095,1721068240686,-435.0,0.0002,2]
[332244096,1721068240696,-293.68788523,0.0002,2]
[332244097,1721068240706,-154.86790895,0.0002,2]
[332244098,1721068240715,-160.70954783,0.0002,2]
[332244099,1721068240725,-5296.98178745,0.00020152,2]
[332244100,1721068240734,-621.31000903,0.0002016,2]
[332244101,1721068240744,-354.02259843,0.00020228,2]
[332244102,1721068240754,-5296.98178745,0.00020388,2]
[332244103,1721068240764,-5530.18621684,0.00020499,2]
[332244104,1721068240773,-354.02259843,0.00020544,2]
[332244105,1721068240782,-150.112233,0.000206,2]
[332244106,1721068240792,-4236.43788233,0.0002066,7]
[332244107,1721068240801,-354.02259843,0.00020686,2]
[332244108,1721068240811,-5296.98178745,0.00020789,2]
[332244109,1721068240820,-150.112233,0.00021,3]
[332244110,1721068240830,-4311.8007035,0.00021,2]
[332244111,1721068240840,-5296.98178745,0.0002103,2]
[332244112,1721068240850,-354.02259843,0.00021038,2]
[332244113,1721068240860,-750.0,0.00021096,2]
[332244114,1721068240869,-39378.8378949,0.00021158,3]
[332244115,1721068240878,-620.06550045,0.00021168,2]
[332244116,1721068240887,-2000.0,0.0002124,2]
[332244117,1721068240896,-354.02259843,0.00021265,2]
[332244118,1721068240906,-150.112233,0.000213,3]
[332244119,1721068240915,-5530.18621684,0.00021304,2]
[332244120,1721068240925,-5296.98178745,0.00021363,2]
[332244121,1721068240934,-354.02259843,0.000214,2]
[332244122,1721068240944,-5296.98178745,0.00021606,2]
[332244123,1721068240953,-823.0,0.00021634,2]
[332244124,1721068240963,-1391.70114749,0.00021699,2]
[332244125,1721068240973,-150.112233,0.000217,3]
[332244126,1721068240982,-354.02259843,0.0002177,2]
[332244127,1721068240992,-281.14473717,0.00021806,2]
[332244128,1721068241002,-500.0,0.00021806,2]
[332244129,1721068241012,-500.0,0.00021806,2]
[332244130,1721068241022,-500.0,0.00021806,2]
[332244131,1721068241032,-500.0,0.00021806,2]
[332244132,1721068241042,-500.0,0.00021806,2]
[332244133,1721068241052,-500.0,0.00021806,2]
[332244134,1721068241061,-456.50259425,0.00021806,2]
[332244135,1721068241072,-500.0,0.00021806,2]
[332244136,1721068241081,-500.0,0.00021806,2]
[332244137,1721068241091,-500.0,0.00021806,2]
[332244138,1721068241100,-546.26348681,0.00021806,2]
[332244139,1721068241111,-30255.62738718,0.00021807,3]
[332244212,1721068244063,-6786.95296575,0.00021807,3]
[332244242,1721068870262,2639.83620261,0.00015,2]
[332244252,1721069196527,273.37336231,9.9e-05,2]
[332244253,1721069204332,273.37336231,9.9e-05,2]
[332244254,1721069214280,273.37336231,9.9e-05,2]
[332244255,1721069222087,273.37336231,9.9e-05,2]
[332244256,1721069230831,273.37336231,9.9e-05,2]
[332244257,1721069239268,273.37336231,9.9e-05,2]
[332244258,1721069247588,273.37336231,9.9e-05,2]
[332244259,1721069250356,2315.43532633,0.00015,2]
[332244260,1721069255494,273.37336231,9.9e-05,2]
[332244261,1721069255704,441.12586768,0.00014999,2]
[332244262,1721069271133,3134.95523253,0.00016255,4]
[332244263,1721069280285,522.53270751,0.00016255,7]
[332244264,1721069284559,268.83161346,0.00016255,7]
[332244265,1721069286134,155.57426598,0.00014999,2]
[332244266,1721069297226,2249.64240333,9.9e-05,2]
[332244267,1721069299049,980.10024446,0.00014999,2]
[332244268,1721069301696,273.37336231,9.9e-05,2]
[332244269,1721069306212,441.12586768,0.00012,2]
[332244270,1721069309281,273.37336231,9.9e-05,2]
[332244281,1721069313092,154.63660398,0.00014999,2]
[332244282,1721069313512,560.89290989,0.00014999,2]
[332244284,1721069317351,182.2732372,0.00014999,2]
[332244285,1721069318270,159.8423972,0.00014999,2]
[332244286,1721069322323,6990.73053784,0.00014998,2]
[332244287,1721069325222,518.18746811,0.00014999,2]
[332244288,1721069328079,610.44931723,0.00015,2]
[332244289,1721069333253,524.1077099,0.00014999,2]
[332244292,1721069342457,320.70573166,0.00014999,2]
[332244293,1721069357846,154.63660398,0.00016255,4]
[332244295,1721069380274,522.53270751,0.00016255,7]
[332244296,1721069382066,268.83161346,0.00016255,7]
[332244297,1721069385146,3134.95523253,0.00016255,4]
[332244429,1721069439369,-763.17768693,0.00016255,2]
[332244430,1721069439378,-441.12586768,0.00016255,2]
[332244431,1721069439389,-218.6748004,0.00016255,2]
[332244432,1721069439398,-159.81664702,0.00016255,2]
[332244433,1721069439407,-255.245645,0.00017693,2]
[332244434,1721069439416,-300.0,0.00017709,2]
[332244435,1721069439425,-300.0,0.00017709,2]
[332244436,1721069439435,-20561.95958297,0.0001771,2]
[332244437,1721069439446,-4338.04041703,0.0001771,2]
[332244438,1721069439455,-154.63660398,0.0001818,4]
[332244439,1721069439466,-522.53270751,0.0001818,7]
[332244440,1721069439476,-250.0,0.00018219,2]
[332244441,1721069439485,-3000.0,0.00018344,2]
[332244442,1721069439494,-162.157861,0.00018635,2]
[332244443,1721069439504,-245.69438099,0.000189,2]
[332244444,1721069439514,-163.001484,0.00019178,2]
[332244446,1721069439523,-420.0,0.0001948,2]
[332244447,1721069439533,-162.157861,0.00019606,2]
[332244450,1721069439542,-362.12891859,0.00019703,7]
[332244451,1721069439552,-3134.95523253,0.00019703,4]
[332244452,1721069439561,-154.86790895,0.0002,2]
[332244453,1721069439570,-1000.0,0.00020108,10]
[332244454,1721069439579,-5297.37845968,0.00020123,2]
[332244455,1721069439589,-3650.46883887,0.00020341,2]
[332244467,1721069440360,-1646.90962081,0.00020341,2]
[332244468,1721069440370,-354.02259845,0.00020355,2]
[332244469,1721069440380,-5297.37845968,0.00020759,2]
[332244470,1721069440390,-354.02259845,0.00020782,2]
[332244471,1721069440400,-331.32406936,0.00020833,2]
[332244472,1721069440410,-5297.37845968,0.00020891,2]
[332244473,1721069440419,-354.02259845,0.00020933,2]
[332244474,1721069440430,-150.0,0.00021035,2]
[332244475,1721069440441,-285.0,0.00021095,2]
[332244476,1721069440452,-750.0,0.00021096,2]
[332244477,1721069440462,-5297.37845968,0.00021159,2]
[332244478,1721069440472,-354.02259845,0.00021185,2]
[332244479,1721069440481,-150.56477222,0.00021212,2]
[332244480,1721069440491,-331.32406936,0.00021298,2]
[332244481,1721069440501,-354.02259846,0.00021411,2]
[332244482,1721069440511,-587.0,0.00021428,2]
[332244483,1721069440521,-5297.37845972,0.00021636,2]
[332244484,1721069440532,-331.32406936,0.00021763,2]
[332244485,1721069440542,-1000.0,0.00021806,10]
[332244486,1721069440551,-2000.0,0.00021807,2]
[332244487,1721069440562,-33472.0122107,0.00021807,3]
[332244488,1721069440572,-764.72891361,0.00021807,2]
[332244489,1721069440584,-6874.87866784,0.00021807,2]
[332244490,1721069440595,-225.98775772,0.00021807,2]
[332244491,1721069440606,-428.79128116,0.00021807,2]
[332244492,1721069440618,-2212.07448676,0.00021807,2]
[332244493,1721069440631,-1000.0,0.00021816,10]
[332244494,1721069440642,-50130.80302472,0.00021817,3]
[332244495,1721069440651,-33472.0122107,0.00021853,3]
[332244496,1721069440661,-153.0,0.00021863,2]
[332244497,1721069440672,-206.3900376,0.00021863,2]
[332244498,1721069440681,-153.0,0.00021863,2]
[332244499,1721069440691,-206.3900376,0.00021863,2]
[332244500,1721069440700,-153.0,0.00021863,2]
[332244501,1721069440830,-153.0,0.00021863,2]
[332244502,1721069440840,-153.0,0.00021863,2]
[332244503,1721069440851,-153.0,0.00021863,2]
[332244504,1721069440860,-229.3624,0.00021863,2]
[332244505,1721069440870,-153.0,0.00021863,2]
[332244506,1721069440879,-153.0,0.00021863,2]
[332244507,1721069440889,-153.0,0.00021863,2]
[332244508,1721069440899,-306.0,0.00021863,2]
[332244509,1721069440908,-2212.07448673,0.00021878,2]
[332244510,1721069440918,-150.112233,0.000219,3]
[332244511,1721069440927,-150.112233,0.000219,2]
[332244512,1721069440937,-196.80131602,0.00021906,2]
[332244513,1721069440946,-500.0,0.00021906,2]
[332244514,1721069440956,-500.0,0.00021906,2]
[332244515,1721069440966,-169.55181598,0.00021906,2]
[332244516,1721069440975,-500.0,0.00021906,2]
[332244517,1721069440985,-500.0,0.00021906,2]
[332244518,1721069440994,-500.0,0.00021906,2]
[332244519,1721069441004,-500.0,0.00021906,2]
[332244520,1721069441013,-500.0,0.00021906,2]
[332244521,1721069441023,-500.0,0.00021906,2]
[332244522,1721069441034,-500.0,0.00021906,2]
[332244523,1721069441043,-500.0,0.00021906,2]
[332244524,1721069441053,-500.0,0.00021906,2]
[332244525,1721069441062,-500.0,0.00021906,2]
[332244526,1721069441072,-154.71533223,0.00021906,2]
[332244527,1721069441081,-1000.0,0.00021906,10]
[332244528,1721069441091,-1000.0,0.00021906,10]
[332244529,1721069441099,-1000.0,0.00021906,10]
[332244530,1721069441108,-1000.0,0.00021906,10]
[332244531,1721069441118,-1000.07449327,0.00021906,10]
[332244532,1721069441126,-15129.10983397,0.00021907,5]
[332244560,1721069445063,-1638.89,0.00021907,5]
[332244561,1721069445186,-1160.89290989,0.00021907,5]
[332244591,1721069446257,-2909.31246786,0.00021907,5]
[332244594,1721069446281,-9470.67603212,0.00021907,5]
[332244596,1721069446290,-1240.13896127,0.00021907,3]
[332244682,1721069569407,273.37336231,9.9e-05,2]
[332244683,1721069577219,33.52290311,9.9e-05,2]
[332244684,1721069577244,239.8504592,9.9e-05,2]
[332244685,1721069586012,273.37336231,9.9e-05,2]
[332244686,1721069593875,273.37336231,9.9e-05,2]
[332244687,1721069602011,273.37336231,9.9e-05,2]
[332244688,1721069610551,273.37336231,9.9e-05,2]
[332244689,1721069618974,273.37336231,9.9e-05,2]
[332244690,1721069626894,273.37336231,9.9e-05,2]
[332244691,1721069807995,280.41683606,0.00014999,2]
[332244692,1721069893736,273.37336231,9.9e-05,2]
[332244693,1721069911588,150.5,0.00021908,62]
[332244694,1721069912111,150.5,0.00021898,62]
[332244695,1721069915743,500.2718385,0.00012,2]
[332244696,1721069950166,3134.95523253,0.00016255,4]
[332244698,1721070030679,154.41,0.00021907,62]
[332244699,1721070031224,566.82686133,0.00014999,2]
[332244701,1721070092685,2414.79027881,0.00016255,4]
[332244710,1721070113335,522.53270751,0.00016255,7]
[332244720,1721070172531,1058.81410225,0.00014999,2]
[332244722,1721070187060,412.83206574,0.00014999,2]
[332244724,1721070189743,155.75413898,0.00014999,2]
[332244727,1721070195759,539.01012922,0.00014999,2]
[332244729,1721070202810,1637.47996894,0.00014999,2]
[332244731,1721070222885,182.82989065,0.00014999,2]
[332244738,1721070277078,1450.26906671,0.00014999,2]
[332244739,1721070277406,5791.33874505,0.00014998,2]
[332244740,1721070286106,458.65976805,0.00014999,2]
[332244741,1721070289113,155.34319849,0.00014999,2]
[332244743,1721070303748,418.2017512,0.00014999,2]
[332244744,1721070306426,345.81993579,0.00014999,2]
[332244745,1721070312771,493.2280173,0.00014999,2]
[332244746,1721070320701,3795.9058464,0.00014999,2]
[332244747,1721070326331,522.53270751,0.00016255,7]
[332244748,1721070326825,461.90787901,0.00014999,2]
[332244749,1721070341445,522.53270751,0.00016255,7]
[332244750,1721070362717,297.44902666,0.00014999,2]
[332244751,1721070386367,391.91633005,0.00014999,2]
[332244752,1721070417432,12004.32114794,0.00014999,2]
[332244753,1721070430829,322.54217679,0.00015998,2]
[332244754,1721070432555,3773.09344064,0.00014999,2]
[332244755,1721070435350,154.83742071,0.00014999,2]
[332244756,1721070446336,175.93156113,0.00016255,7]
[332244757,1721070456411,257.04469015,0.00014999,2]
[332244758,1721070484895,154.63660398,0.00016255,4]
[332244759,1721070491324,154.85288975,0.00014999,2]
[332244760,1721070516926,1854.50113432,0.00014999,2]
[332244762,1721070591390,163.42435828,0.00016255,4]
[332244790,1721070632312,-163.79625399,0.000189,2]
[332244792,1721070632321,-1445.3968897,0.00019136,2]
[332244793,1721070632331,-300.0,0.00019731,2]
[332244795,1721070632340,-14131.9764728,0.00019732,2]
[332244797,1721070632349,-163.429298,0.00020436,2]
[332244799,1721070632358,-620.00327502,0.00021042,2]
[332244801,1721070632367,-285.0,0.00021095,2]
[332244803,1721070632378,-712.5,0.00021096,2]
[332244805,1721070632387,-179.494603,0.00021096,2]
[332244807,1721070632396,-153.0,0.000211,2]
[332244809,1721070632407,-153.0,0.00021178,2]
[332244811,1721070632415,-153.0,0.00021178,2]
[332244813,1721070632424,-153.0,0.00021178,2]
[332244815,1721070632434,-153.0,0.00021178,2]
[332244817,1721070632443,-420.0,0.00021704,2]
[332244819,1721070632453,-1327.24469207,0.00021807,2]
[332244821,1721070632462,-869.81321719,0.00021807,2]
[332244823,1721070632470,-153.0,0.00021863,2]
[332244825,1721070632480,-153.0,0.00021863,2]
[332244827,1721070632490,-153.0,0.00021863,2]
[332244829,1721070632499,-153.0,0.00021863,2]
[332244831,1721070632508,-153.0,0.00021863,2]
[332244833,1721070632518,-153.0,0.00021863,2]
[332244835,1721070632527,-153.0,0.00021863,2]
[332244837,1721070632538,-153.0,0.00021863,2]
[332244839,1721070632547,-153.0,0.00021863,2]
[332244841,1721070632556,-153.0,0.00021863,2]
[332244843,1721070632565,-153.0,0.00021863,2]
[332244845,1721070632574,-153.0,0.00021863,2]
[332244847,1721070632584,-153.0,0.00021863,2]
[332244849,1721070632593,-153.0,0.00021863,2]
[332244851,1721070632602,-1327.24469203,0.00021878,2]
[332244853,1721070632611,-306.9,0.00021897,3]
[332244855,1721070632621,-150.112233,0.000219,5]
[332244857,1721070632630,-150.112233,0.000219,4]
[332244860,1721070632640,-500.0,0.00021906,2]
[332244862,1721070632651,-164.39146024,0.00021906,10]